Cogmind - Beta 13 @@@ ROGUE MODE // 2024.06.24 @ 20:39:28 Player: Lunace Result: Destroyed by D-53 Grenadier with Mini Grenade Launcher Performance ------------- Evolutions (0) 0 Regions Visited (2) 400 Robots Destroyed (18) 90 Value Destroyed (466) 466 Prototype IDs (2) 40 Alien Tech Used (0) 0 Bonus (0) 0 TOTAL SCORE: 996 Bonus ------- None Cogmind --------- Core Integrity 0/250 Matter 248/300 Energy 49/100 System Corruption 0% Temperature Cool (0) Movement Core (50) Location -10/Mines Parts ------- > --- POWER (1) -------- (None) > --- PROPULSION (2) --- (None) > --- UTILITY (2) ------ (None) > --- WEAPON (2) ------- (None) > --- INVENTORY (5) ---- Light Ion Engine Aluminum Leg Large Storage Unit Structural Scanner Light Assault Rifle Peak State ------------ > --- POWER ------------ Ion Engine > --- PROPULSION ------- Aluminum Leg Aluminum Leg > --- UTILITY ---------- Improved Heat Sink Small Storage Unit > --- WEAPON ----------- Assault Rifle > --- INVENTORY -------- Light Ion Engine Aluminum Leg Flight Unit Large Storage Unit Structural Scanner Light Armor Plating Light Assault Rifle [Rating: 8] Favorites ----------- Power Ion Engine Engine Ion Engine Propulsion Light Treads Treads Light Treads Leg Aluminum Leg Flight Unit Flight Unit Utility Seismic Detector Device Seismic Detector Storage Large Storage Unit Protection Light Armor Plating Weapon Assault Rifle Energy Gun EM Pulse Gun Ballistic Gun Assault Rifle Launcher Grenade Launcher Build | -11 -10 -10 ------- Run | Yrd Mat Min Slots Evolved . | . . . Power . | . . . Propulsion . | . . . Utility . | . . . Weapon . | . . . Parts Attached 18 | 7 6 5 Power 1 | 1 . . Engine 1 | 1 . . Core . | . . . Reactor . | . . . Propulsion 6 | 2 2 2 Treads 2 | 2 . . Leg 2 | . 2 . Wheel . | . . . Hover . | . . . Flight 2 | . . 2 Utility 6 | 2 2 2 Device 2 | 1 . 1 Storage 3 | 1 2 . Processor . | . . . Hackware . | . . . Protection 1 | . . 1 Artifact . | . . . Weapon 5 | 2 2 1 Energy Gun 2 | . 1 1 Energy Cannon . | . . . Ballistic Gun 2 | 2 . . Ballistic Cannon . | . . . Launcher 1 | . 1 . Special Weapon . | . . . Impact Weapon . | . . . Slashing Weapon . | . . . Piercing Weapon . | . . . Special Melee Weapon . | . . . Unidentified Prototypes . | . . . Parts Lost 6 | . 3 3 Power . | . . . Propulsion 2 | . 1 1 Utility 1 | . 1 . Weapon 3 | . 1 2 Highest Loss Streak 3 | . 3 2 To Critical Strikes . | . . . Average Slot Usage (%) 96 | . 97 82 Engine 13 | . 14 11 Treads 23 | . 25 . Leg 3 | . 1 25 Device 11 | . 12 . Storage 14 | . 14 14 Energy Gun 11 | . 11 11 Ballistic Gun 14 | . 14 11 Launcher 1 | . 1 . Naked Turns . | . . . Heaviest Build 30 | 14 30 18 Greatest Support 40 | 40 40 20 Greatest Overweight (x) 1 | . 1 . Average Overweight (x) . | . . . Largest Inventory Capacity 15 | 8 15 8 Average Capacity 11 | 7 12 8 Most Carried 8 | 2 8 8 Average Carried 4 | 1 4 6 Final Capacity 8 | 8 8 5 Final Carried 6 | 2 6 5 Class Distribution -------------------- 100% | Mutant Dominant Class ---------------- Mutant | -10/Materials Mutant | -10/Mines Resources | -11 -10 -10 ----------- Run | Yrd Mat Min Matter Collected 479 | 282 154 43 Remotely . | . . . Salvage Created 488 | 26 389 73 Parts 38 | 7 26 5 Haulers Intercepted . | . . . Recyclers Shooed . | . . . Parts Field Recycled . | . . . Retrieved Matter . | . . . Parts Self-Destructed . | . . . Prevented . | . . . Kills | -11 -10 -10 ------- Run | Yrd Mat Min Combat Hostiles Destroyed 13 | . 11 2 Guns 7 | . 7 . AOE 6 | . 4 2 Classes Destroyed 5 | 1 4 . Worker 1 | . 1 . Tunneler 2 | 2 . . Watcher 2 | . 2 . Swarmer 3 | . 3 . Grunt 10 | . 8 2 Best Kill Streak 5 | 2 5 2 Combat Bots Only 5 | . 5 2 Max Kills in Single Turn 2 | 1 2 1 Gunslinging . | . . . Exploded 2 | . 2 1 Melee . | . . . Uniques/NPCs Destroyed . | . . . Combat | -11 -10 -10 -------- Run | Yrd Mat Min Hostile Shots Fired 81 | . 55 26 Missed 22 | . 10 12 Damage Taken 873 | . 515 358 Core 258 | . 62 196 Absorbed by Shields . | . . . Core Remaining (%) 100 | 100 . . Volleys Fired 39 | 4 33 2 Largest 2 | 2 2 2 Hottest 60 | 40 60 50 Shots Fired 77 | 8 65 4 Gun 71 | 8 61 2 Cannon . | . . . Launcher 6 | . 4 2 Special . | . . . Kinetic 43 | 8 33 2 Thermal . | . . . Explosive 6 | . 4 2 Electromagnetic 28 | . 28 . Robot Hit Streak 10 | 1 10 1 Robot Miss Streak 3 | 3 3 1 Penetration Max . | . . . Secondary Targets 2 | . 2 . Max Gunslinging Chain 1 | . 1 . Shots Hit Robots 47 | 3 42 2 Core Hits 26 | 2 21 3 Critical Kills . | . . . Critical Parts Destroyed . | . . . Critical Strikes . | . . . Melee Attacks . | . . . Impact . | . . . Slashing . | . . . Piercing . | . . . Sneak Attacks . | . . . Combat Hostiles . | . . . Follow-up Attacks . | . . . Damage Inflicted 976 | 34 835 107 Guns 567 | 34 533 . Cannons . | . . . Explosions 409 | . 302 107 Melee . | . . . Ramming . | . . . Kinetic 288 | 34 254 . Thermal 102 | . 102 . Explosive 307 | . 200 107 Electromagnetic 279 | . 279 . Impact . | . . . Slashing . | . . . Piercing . | . . . Highest Corruption . | . . . Average Corruption . | . . . Corruption Purged . | . . . Corruption Blocked . | . . . Overload Shots . | . . . Overflow Damage 13 | . 9 4 Projectiles . | . . . Explosions 13 | . 9 4 Melee . | . . . Knockbacks . | . . . Impact . | . . . Kinetic . | . . . Secondary . | . . . Self-Inflicted Damage 75 | . 21 54 Shots 4 | . 2 2 Rammed . | . . . Targets Rammed . | . . . Kicked . | . . . Crushed . | . . . Highest Temperature 114 | . 114 5 Average Temperature 48 | . 49 5 Received Heat Transfer 292 | . 252 40 Siege Activations . | . . . Robots Corrupted . | . . . Combat Hostiles . | . . . Parts Fried 2 | . 2 . Impact Corruptions . | . . . Robots Melted . | . . . Combat Hostiles . | . . . Parts Melted 1 | . 1 . Heat Transferred 200 | . 200 . Parts Sabotaged . | . . . Parts Stolen . | . . . Parts Stripped . | . . . Power Chain Reactions 1 | . 1 . Alert | -11 -10 -10 ------- Run | Yrd Mat Min Peak Influence 259 | 10 259 141 Initial 74 | . 6 74 Average 96 | 2 108 136 Maximum Alert Level 1 | . 1 . Low Security (%) 87 | 100 84 100 Level 1 12 | . 15 . Level 2 . | . . . Level 3 . | . . . Level 4 . | . . . Level 5 . | . . . High Security . | . . . Max Security . | . . . Squads Dispatched 3 | . 3 . Investigation 1 | . 1 . Extermination . | . . . Reinforcement 2 | . 2 . Assault . | . . . Garrison . | . . . Intercept . | . . . Searches Triggered . | . . . Construction Impeded . | . . . Haulers Reinforced . | . . . Active Scanning Responses . | . . . Cargo Convoy Interrupts . | . . . Stealth | -11 -10 -10 --------- Run | Yrd Mat Min Distress Signals 1 | . 1 . Communications Jammed . | . . . Distress Signals . | . . . Times Spotted 39 | . 15 24 Peak Tracking Total 20 | . 5 20 Tactical Retreats . | . . . Traps | -11 -10 -10 ------- Run | Yrd Mat Min Traps Triggered 1 | . 1 . Indirectly . | . . . Trap Hack Attempts . | . . . Triggered . | . . . Disarmed . | . . . Reprogrammed . | . . . Reused . | . . . Traps Extracted . | . . . Installed . | . . . Triggered 1 | . 1 . Machines | -11 -10 -10 ---------- Run | Yrd Mat Min Machines Disabled 1 | . 1 . Max in Single Turn 1 | . 1 . Machines Repaired . | . . . Machines Dismantled . | . . . Machines Sabotaged . | . . . Overloaded Fab Kills . | . . . Hacking | -11 -10 -10 --------- Run | Yrd Mat Min Machines Accessed 6 | . 6 . Terminals 4 | . 4 . Fabricators . | . . . Repair Stations . | . . . Recycling Units 2 | . 2 . Scanalyzers . | . . . Garrison Access . | . . . Total Hacks 12 | . 12 . Successful 4 | . 4 . Failed 8 | . 8 . Catastrophic 1 | . 1 . Database Lockouts . | . . . Manual 3 | . 3 . Terminals 9 | . 9 . Fabricators . | . . . Repair Stations . | . . . Recycling Units 3 | . 3 . Scanalyzers . | . . . Garrison Access . | . . . Terminal Hacks 3 | . 3 . Prototype ID Bank 1 | . 1 . Branch Access Points 1 | . 1 . Locate Traps 1 | . 1 . Fabricator Hacks . | . . . Repair Station Hacks . | . . . Recycling Unit Hacks 1 | . 1 . Retrieve Components 1 | . 1 . Scanalyzer . | . . . Garrison Access Hacks . | . . . Unauthorized Hacks . | . . . Terminals . | . . . Fabricators . | . . . Repair Stations . | . . . Recycling Units . | . . . Scanalyzers . | . . . Garrison Access . | . . . Data Cores Recovered . | . . . Used . | . . . Hacking Detections 5 | . 5 . Full Trace Events . | . . . Feedback Events . | . . . Feedback Blocked . | . . . Robot Schematics Acquired . | . . . Robots Built . | . . . Authchips . | . . . Time . | . . . Total Robot Build Rating . | . . . Part Schematics Acquired . | . . . Parts Built . | . . . Authchips . | . . . Time . | . . . Total Part Build Rating . | . . . Parts Repaired . | . . . Time . | . . . Parts Recycled . | . . . Recycled Matter . | . . . Retrieved Matter . | . . . Retrieved Components 3 | . 3 . Parts Scanalyzed . | . . . Part Schematics Acquired . | . . . Parts Damaged . | . . . Bothacking | -11 -10 -10 ------------ Run | Yrd Mat Min Used RIF Installer . | . . . Robots Hacked . | . . . Non-combat . | . . . Combat . | . . . Robot Hacks Applied . | . . . Relay Couplers Released . | . . . Fabnet Peak Effective % . | . . . Robots Rewired . | . . . Allies Hacked . | . . . Hacks Repelled . | . . . Allies | -11 -10 -10 -------- Run | Yrd Mat Min Total Allies . | . . . Largest Group . | . . . Highest-Rated Group . | . . . Highest-Rated Ally . | . . . Total Orders . | . . . Ally Attacks . | . . . Total Damage . | . . . Kills . | . . . Allies Corrupted . | . . . Allies Melted . | . . . Intel | -11 -10 -10 ------- Run | Yrd Mat Min Robot Analysis Total . | . . . Derelict Logs Recovered . | . . . Drone Launches . | . . . Drone Recoveries . | . . . Exploration | -11 -10 -10 ------------- Run | Yrd Mat Min Turns Passed 893 | 111 731 51 Spaces Moved 461 | 52 382 27 Core 3 | 3 . . Treads 395 | 49 346 . Legs 63 | . 36 27 Wheels . | . . . Hover . | . . . Flight . | . . . Fastest Speed 50 | 50 120 120 Average Speed 155 | 153 157 120 Slowest Speed 240 | 160 240 120 Overloaded Moves . | . . . Propulsion Burnouts . | . . . Robots Hopped . | . . . Cave-ins Triggered . | . . . Exploration Rate (%) 30 | 4 73 14 Regions Visited 2 Branch Regions 1 Pre-discovered Areas . | . . . Known Exits Taken 1 | . 1 . Unknown Exits Taken 1 | 1 . . Scrap Searched . | . . . Spaces Dug . | . . . Terrain Destroyed 43 | . 29 14 Melee . | . . . Projectile . | . . . AOE 43 | . 29 14 Terrain Rammed . | . . . Walls Destroyed . | . . . Machines Disabled . | . . . Actions | -11 -10 -10 --------- Run | Yrd Mat Min Total 563 | 73 446 44 Wait 24 | 9 15 . Move 459 | 51 381 27 Hop . | . . . Pick Up 12 | 2 7 3 Fast Attach 10 | 7 1 2 Attach 6 | . 3 3 Detach 1 | . 1 . Swap 2 | . 2 . Drop 10 | . 3 7 Fire 39 | 4 33 2 Melee . | . . . Ram . | . . . Kick . | . . . Crush . | . . . Escape Stasis . | . . . Rewire . | . . . Trap . | . . . Miscellaneous . | . . . Route ------- -11/Scrapyard -10/Materials (discovered 5 exits: [*Mat x3] / *Min x2) -10/Mines History --------- Turn | Location | Event 6 | -11/Scrapyard | Discovered new exit (range 16) 112 | -11/Scrapyard | Entered Materials 186 | -10/Materials | Identified exit to Mines 302 | -10/Materials | Build established: Mutant 380 | -10/Materials | Discovered new exit (range 15) 559 | -10/Materials | Discovered new exit (range 4) 739 | -10/Materials | Discovered new exit (range 11) 797 | -10/Materials | Lost 3 parts (1n1u1w) 843 | -10/Materials | Entered Mines 875 | -10/Mines | Assembled infested the area 880 | -10/Mines | Assisted by a Guerilla fighting off Assembled 893 | -10/Mines | Core integrity fell below 50% 894 | -10/Mines | Destroyed by D-53 Grenadier with Mini Grenade Launcher Last Messages --------------- coming from, and they're closing on this area, come on!" 00880_ Assault Rifle destroyed. 00883_ Aluminum Leg severed. 00883_ S-10 Pest destroyed. 00883_ as-39003 destroyed. 00884_ Dropped Ion Engine. 00884_ Dropped Lgt. Armor Plating. 00885_ S-10 Pest destroyed. 00889_ Acquired Flight Unit. 00890_ Dropped Particle Gun. 00891_ S-10 Pest destroyed. 00891_ Dropped Aluminum Leg. 00893_ Flight Unit severed. 00893_ Dropped Aluminum Leg. 00894_ Dropped Sml. Storage Unit. 00894_ as-97864 destroyed. 00894_ as-80222 destroyed. 00894_ as-82542 destroyed. 00894_ Flight Unit destroyed. Map ----- +----------------------------------------------------+ | | | | | ?????????????????????????????????????????????????? | | ?????????????????????????????????????????????????? | | ?????????????????????????????????????????????????? | | ??????????????????????????????#########??????????? | | ??????????????????????????????# #??????????? | | ??????????????????????????????# #??????????? | | ??????????????????????????????# ! #??????????? | | ??????????????????????????????# * #??????????? | | ??????????????????????????????# #??????????? | | ????????????????????? ????????## #??????????? | | ????????????????????? ????????# # #??????????? | | ????????????????????? ????????##### ##??????????? | | ????????????????????? ????????????# #???????????? | | ?????????????????????? ????????????# #???????????? | | ?????????????????????? ???????????# #???????????? | | ?????????????????????? ????????#### #???????????? | | ???????????? ???????# ????????# #???????????? | | ???????????? #?????# ????????# ###???????????? | | ???????????? ???# ???????# #?????????????? | | ??????????? ??# ???????# #?????????????? | | ??????????? ## ??????##%%#?????????????? | | ???????????? *=# ##### #?????????????? | | ???????????????# =a%[aa a #?????????????? | | ????????????????# =%@=a!a* ;#?????????????? | | ????????????????# ####a ### a #?????????????? | | ?????????????????????????# #??# ?????????? | | ?????????????????????????# #?? #???????? | | ????????????????????????? ?? #??????? | | ????????????????????????? ? ?????? | | ?????????????????????????## ? ?????? | | ??????????????????????????? #### ?????? | | ??????????????????????????? "#????## ?????? | | ???????????????????????????# "#????????????? | | ???????????????????????????## %#????????????? | | ????????????????????????????## ????????????? | | ?????????????????????????????## % ????????????? | | ??????????????????????????????? ?#???????????? | | ??????????????????????????????? ???????????????? | | ?????????????????????????????????????????????????? | | ?????????????????????????????????????????????????? | | ?????????????????????????????????????????????????? | | ?????????????????????????????????????????????????? | | ?????????????????????????????????????????????????? | | ?????????????????????????????????????????????????? | | ?????????????????????????????????????????????????? | | ?????????????????????????????????????????????????? | | ?????????????????????????????????????????????????? | | ?????????????????????????????????????????????????? | +----------------------------------------------------+ Best States ------------- Heat Dissipation 25 Energy Generation 10 Energy Capacity 250 Matter Stores 296 Matter Capacity 300 Sight Range 16 Terrain Scan Density 10 Armor Coverage 150 Evasion (%) 55 Recoil Reduction 2 Item Schematics ----------------- None Robot Schematics ------------------ None Fabricated ------------ Nothing Alien Tech Used ----------------- None Achievements -------------- None Challenges ------------ None Game ------ Seed SpliceCoilSuperbattery Manual? 0 Play Time 00:07:10 Cumulative 279.0 hours Start 2024.06.24 @ 20:33:19 End 2024.06.24 @ 20:39:28 Sessions 1 Manual Loads 0 Difficulty Rogue Special Mode None Game No. 270 Rogue 265 Adventurer 5 Explorer 0 Win Type - Total 4 Types 3/0/0/1/0/0/0/0/0 Lore% 67 Gallery% 83 Achievement% 64 Wizard Run 0 Options --------- Layout 2 ASCII 0 Keyboard 0 Movement Mouse Keybinds 0 Fullscreen 1 Font 24/Terminus Map View 50x44 Zoom Use 0% Tactical HUD 1 Map Filters NONE Filters NONE Steam 1 RUN: 7e04ddcc-b9d8-492c-aaa1-2d9f701b3aca